[Event "Early-Titled-Tuesday-Blitz-February-20-2024"]
[Site "Chess.com"]
[Date "2024.02.20"]
[Round "8"]
[White "yaguigor"]
[Black "JonSnowNW1"]
[Result "1/2-1/2"]
[WhiteElo "2670"]
[BlackElo "2510"]
[TimeControl "180+1"]
[EndTime "9:31:15 PST"]
[Termination "Game drawn by repetition"]

1. Nf3 {[%clk 0:02:56.9]} 1... d5 {[%clk 0:02:59.7]} 2. d4 {[%clk 0:02:56]} 2...
Nf6 {[%clk 0:02:59.5]} 3. c4 {[%clk 0:02:56]} 3... c6 {[%clk 0:02:59]} 4. Nc3
{[%clk 0:02:54.8]} 4... e6 {[%clk 0:02:58.9]} 5. e3 {[%clk 0:02:54.1]} 5... Nbd7
{[%clk 0:02:59]} 6. Qc2 {[%clk 0:02:52.7]} 6... Bd6 {[%clk 0:02:58.8]} 7. b3
{[%clk 0:02:50.7]} 7... Qe7 {[%clk 0:02:53.1]} 8. Be2 {[%clk 0:02:47.4]} 8...
O-O {[%clk 0:02:43]} 9. O-O {[%clk 0:02:45.5]} 9... e5 {[%clk 0:02:38.6]} 10.
cxd5 {[%clk 0:02:36.9]} 10... Nxd5 {[%clk 0:02:37.3]} 11. Nxd5 {[%clk
0:02:33.3]} 11... cxd5 {[%clk 0:02:35.9]} 12. dxe5 {[%clk 0:02:32.5]} 12... Nxe5
{[%clk 0:02:34.3]} 13. Bb2 {[%clk 0:02:31.2]} 13... Nxf3+ {[%clk 0:02:17]} 14.
Bxf3 {[%clk 0:02:30.1]} 14... Be6 {[%clk 0:02:14.9]} 15. Qc3 {[%clk 0:02:23.7]}
15... Qg5 {[%clk 0:02:12.2]} 16. h4 {[%clk 0:02:14]} 16... Qh6 {[%clk 0:02:09]}
17. Qd4 {[%clk 0:02:10.1]} 17... Be7 {[%clk 0:02:05.7]} 18. g3 {[%clk
0:02:05.8]} 18... Bf6 {[%clk 0:01:45.5]} 19. Qd2 {[%clk 0:02:04.9]} 19... Rfd8
{[%clk 0:01:43.8]} 20. Bd4 {[%clk 0:01:59.5]} 20... Qg6 {[%clk 0:01:34.2]} 21.
Kh2 {[%clk 0:01:52.5]} 21... Qf5 {[%clk 0:01:30]} 22. Bg2 {[%clk 0:01:51.4]}
22... Be7 {[%clk 0:01:28.9]} 23. Rac1 {[%clk 0:01:48.5]} 23... Ba3 {[%clk
0:01:22.7]} 24. Rc2 {[%clk 0:01:45.4]} 24... Rac8 {[%clk 0:01:21.8]} 25. Rc3
{[%clk 0:01:31]} 25... Rxc3 {[%clk 0:00:54.8]} 26. Qxc3 {[%clk 0:01:29]} 26...
Rc8 {[%clk 0:00:52.4]} 27. Qa5 {[%clk 0:01:28.9]} 27... Bd6 {[%clk 0:00:45.1]}
28. Qxa7 {[%clk 0:01:19.7]} 28... h5 {[%clk 0:00:43.3]} 29. Qb6 {[%clk
0:01:11.8]} 29... Rc6 {[%clk 0:00:36.6]} 30. Qd8+ {[%clk 0:01:10.7]} 30... Kh7
{[%clk 0:00:33.6]} 31. Qg5 {[%clk 0:01:03.6]} 31... Qxg5 {[%clk 0:00:30]} 32.
hxg5 {[%clk 0:01:03.3]} 32... Rc2 {[%clk 0:00:30.6]} 33. a4 {[%clk 0:01:00.7]}
33... h4 {[%clk 0:00:27.1]} 34. e4 {[%clk 0:00:47.5]} 34... hxg3+ {[%clk
0:00:12.1]} 35. fxg3 {[%clk 0:00:47]} 35... Rd2 {[%clk 0:00:11.2]} 36. Be3
{[%clk 0:00:38.3]} 36... Re2 {[%clk 0:00:11.4]} 37. Bf4 {[%clk 0:00:35.6]} 37...
Bxf4 {[%clk 0:00:09.1]} 38. Rxf4 {[%clk 0:00:35.1]} 38... dxe4 {[%clk
0:00:08.3]} 39. b4 {[%clk 0:00:26.1]} 39... Bd5 {[%clk 0:00:05.5]} 40. Rf5
{[%clk 0:00:24.3]} 40... Bc6 {[%clk 0:00:05.2]} 41. b5 {[%clk 0:00:23.6]} 41...
Bd7 {[%clk 0:00:05.1]} 42. Rxf7 {[%clk 0:00:22.3]} 42... Be6 {[%clk 0:00:05]}
43. Rxb7 {[%clk 0:00:20.3]} 43... e3 {[%clk 0:00:05.3]} 44. Kg1 {[%clk
0:00:17.3]} 44... Re1+ {[%clk 0:00:05]} 45. Kh2 {[%clk 0:00:17.5]} 45... Re2
{[%clk 0:00:04.9]} 46. Kg1 {[%clk 0:00:13.5]} 46... Re1+ {[%clk 0:00:04.8]} 47.
Kh2 {[%clk 0:00:12]} 47... Re2 {[%clk 0:00:05.4]} 1/2-1/2

[Event "Early-Titled-Tuesday-Blitz-February-20-2024"]
[Site "Chess.com"]
[Date "2024.02.20"]
[Round "8"]
[White "AlexanderKing"]
[Black "Magic-Nelwyn"]
[Result "0-1"]
[WhiteElo "2621"]
[BlackElo "2490"]
[TimeControl "180+1"]
[EndTime "9:31:18 PST"]
[Termination "Magic-Nelwyn won on time"]

1. c4 {[%clk 0:03:00.9]} 1... b6 {[%clk 0:02:55.6]} 2. d4 {[%clk 0:02:59.1]}
2... Bb7 {[%clk 0:02:56]} 3. Nc3 {[%clk 0:02:58.3]} 3... e6 {[%clk 0:02:56.1]}
4. e4 {[%clk 0:02:57.6]} 4... Bb4 {[%clk 0:02:56.2]} 5. Qc2 {[%clk 0:02:57.7]}
5... Qh4 {[%clk 0:02:47.3]} 6. Bd3 {[%clk 0:02:48.4]} 6... f5 {[%clk 0:02:46.7]}
7. Nf3 {[%clk 0:02:10.5]} 7... Qg4 {[%clk 0:02:19.4]} 8. O-O {[%clk 0:01:53.3]}
8... Bxc3 {[%clk 0:02:19.1]} 9. h3 {[%clk 0:01:28.7]} 9... Qh5 {[%clk 0:01:55]}
10. bxc3 {[%clk 0:01:27.3]} 10... fxe4 {[%clk 0:01:53.1]} 11. Bxe4 {[%clk
0:01:28.2]} 11... Bxe4 {[%clk 0:01:51.7]} 12. Qxe4 {[%clk 0:01:29.1]} 12... Nc6
{[%clk 0:01:51.4]} 13. d5 {[%clk 0:01:05.3]} 13... Nf6 {[%clk 0:01:50.8]} 14.
Qe2 {[%clk 0:00:55.7]} 14... Na5 {[%clk 0:01:38.7]} 15. dxe6 {[%clk 0:00:51.5]}
15... O-O {[%clk 0:01:24.7]} 16. e7 {[%clk 0:00:27.7]} 16... Rfe8 {[%clk
0:01:17.9]} 17. Bg5 {[%clk 0:00:27.1]} 17... Qf7 {[%clk 0:01:12.9]} 18. Bxf6
{[%clk 0:00:21.9]} 18... Qxf6 {[%clk 0:01:10]} 19. Rfe1 {[%clk 0:00:19.5]} 19...
Nc6 {[%clk 0:01:02.6]} 20. c5 {[%clk 0:00:09.6]} 20... Rxe7 {[%clk 0:00:42.8]}
21. Qc4+ {[%clk 0:00:09.6]} 21... Qf7 {[%clk 0:00:39.7]} 22. Qxf7+ {[%clk
0:00:09.6]} 22... Rxf7 {[%clk 0:00:34.4]} 23. cxb6 {[%clk 0:00:08.2]} 23... axb6
{[%clk 0:00:35.3]} 24. Ne5 {[%clk 0:00:05.9]} 24... Nxe5 {[%clk 0:00:26.7]} 25.
Rxe5 {[%clk 0:00:06.8]} 25... Kf8 {[%clk 0:00:27.3]} 26. a4 {[%clk 0:00:03.9]}
26... d6 {[%clk 0:00:25.1]} 27. Rb5 {[%clk 0:00:02.6]} 27... Ke7 {[%clk
0:00:17.6]} 28. a5 {[%clk 0:00:02.6]} 28... Rxa5 {[%clk 0:00:18.1]} 29. Rbxa5
{[%clk 0:00:03.5]} 29... bxa5 {[%clk 0:00:19]} 30. Rxa5 {[%clk 0:00:04.2]} 30...
Kd7 {[%clk 0:00:19.8]} 31. c4 {[%clk 0:00:02.8]} 31... Rf4 {[%clk 0:00:19]} 32.
c5 {[%clk 0:00:02.8]} 32... d5 {[%clk 0:00:12.1]} 33. Kf1 {[%clk 0:00:02]} 33...
Rc4 {[%clk 0:00:11.4]} 34. Ke2 {[%clk 0:00:02.1]} 34... Kc6 {[%clk 0:00:10.2]}
35. Ra8 {[%clk 0:00:02.1]} 35... Kxc5 {[%clk 0:00:07.7]} 36. Rg8 {[%clk
0:00:03]} 36... Rc2+ {[%clk 0:00:06.8]} 37. Ke3 {[%clk 0:00:01.6]} 37... Kc4
{[%clk 0:00:06.3]} 38. Rxg7 {[%clk 0:00:01.6]} 38... c5 {[%clk 0:00:06.9]} 39.
Rxh7 {[%clk 0:00:01.1]} 39... d4+ {[%clk 0:00:07.8]} 40. Kf3 {[%clk 0:00:01.5]}
40... Rc3+ {[%clk 0:00:08.2]} 41. Ke4 {[%clk 0:00:01.4]} 41... Rc2 {[%clk
0:00:08.1]} 42. Rd7 {[%clk 0:00:02.3]} 42... Rxf2 {[%clk 0:00:07.8]} 43. g4
{[%clk 0:00:03.2]} 43... Rh2 {[%clk 0:00:07.5]} 44. g5 {[%clk 0:00:01.4]} 44...
Rxh3 {[%clk 0:00:07.1]} 45. Kf4 {[%clk 0:00:01.4]} 45... Rh1 {[%clk 0:00:06.9]}
46. g6 {[%clk 0:00:01.9]} 46... Rf1+ {[%clk 0:00:06.9]} 47. Ke5 {[%clk
0:00:01.3]} 47... Rg1 {[%clk 0:00:07.8]} 48. Kf5 {[%clk 0:00:01.2]} 48... Kc3
{[%clk 0:00:07.8]} 49. Ke4 {[%clk 0:00:01.3]} 49... Rg4+ {[%clk 0:00:07.1]} 50.
Kf5 {[%clk 0:00:01.5]} 50... Rg1 {[%clk 0:00:07.2]} 51. Rd5 {[%clk 0:00:01.5]}
51... c4 {[%clk 0:00:06.6]} 52. Kf6 {[%clk 0:00:02.4]} 52... d3 {[%clk
0:00:06.8]} 53. Rg5 {[%clk 0:00:02.9]} 53... Rf1+ {[%clk 0:00:06.9]} 54. Ke7
{[%clk 0:00:03.3]} 54... Re1+ {[%clk 0:00:07.1]} 55. Kf7 {[%clk 0:00:03.5]}
55... Ra1 {[%clk 0:00:06.7]} 56. g7 {[%clk 0:00:02.3]} 56... Ra7+ {[%clk
0:00:07.1]} 57. Kf6 {[%clk 0:00:01.3]} 57... Ra8 {[%clk 0:00:07.3]} 0-1

[Event "Early-Titled-Tuesday-Blitz-February-20-2024"]
[Site "Chess.com"]
[Date "2024.02.20"]
[Round "8"]
[White "Lion-Al-Messi"]
[Black "BardArtem"]
[Result "0-1"]
[WhiteElo "2537"]
[BlackElo "2767"]
[TimeControl "180+1"]
[EndTime "9:31:21 PST"]
[Termination "BardArtem won on time"]

1. e4 {[%clk 0:03:00.9]} 1... e5 {[%clk 0:02:57.7]} 2. Nf3 {[%clk 0:03:00.5]}
2... Nc6 {[%clk 0:02:57.6]} 3. Bb5 {[%clk 0:03:00.8]} 3... Nge7 {[%clk
0:02:58.1]} 4. Nc3 {[%clk 0:02:57]} 4... Ng6 {[%clk 0:02:58.1]} 5. h4 {[%clk
0:02:56.5]} 5... Be7 {[%clk 0:02:54.4]} 6. h5 {[%clk 0:02:56.1]} 6... Nh4 {[%clk
0:02:54.4]} 7. Nxh4 {[%clk 0:02:55.3]} 7... Bxh4 {[%clk 0:02:55.3]} 8. g3 {[%clk
0:02:54.1]} 8... Bf6 {[%clk 0:02:54.4]} 9. h6 {[%clk 0:02:53.2]} 9... g6 {[%clk
0:02:54.6]} 10. Nd5 {[%clk 0:02:53.1]} 10... a6 {[%clk 0:02:47.4]} 11. Ba4
{[%clk 0:02:49.8]} 11... b5 {[%clk 0:02:40.3]} 12. Bb3 {[%clk 0:02:49.6]} 12...
O-O {[%clk 0:02:32.8]} 13. c3 {[%clk 0:02:43.9]} 13... d6 {[%clk 0:02:31.1]} 14.
Qf3 {[%clk 0:02:43.2]} 14... Bh8 {[%clk 0:02:30.9]} 15. d3 {[%clk 0:02:39.1]}
15... Be6 {[%clk 0:02:25.9]} 16. Be3 {[%clk 0:02:37.2]} 16... Na5 {[%clk
0:02:21.6]} 17. Bc2 {[%clk 0:02:35.1]} 17... Bxd5 {[%clk 0:02:21.3]} 18. exd5
{[%clk 0:02:35.2]} 18... Nb7 {[%clk 0:02:17.9]} 19. O-O-O {[%clk 0:02:34.2]}
19... a5 {[%clk 0:02:14.9]} 20. d4 {[%clk 0:02:33.4]} 20... exd4 {[%clk
0:02:11.9]} 21. Bxd4 {[%clk 0:02:29.9]} 21... Bxd4 {[%clk 0:02:12]} 22. Rxd4
{[%clk 0:02:29.6]} 22... Qg5+ {[%clk 0:02:09.2]} 23. Kb1 {[%clk 0:02:28.8]}
23... Rfe8 {[%clk 0:02:08.8]} 24. Rf4 {[%clk 0:02:27.1]} 24... Re7 {[%clk
0:02:08.6]} 25. a3 {[%clk 0:02:25.8]} 25... Nc5 {[%clk 0:02:05]} 26. Qd1 {[%clk
0:02:13.2]} 26... Rae8 {[%clk 0:01:58.8]} 27. Qd4 {[%clk 0:02:11.2]} 27... Qe5
{[%clk 0:01:58.2]} 28. Ka2 {[%clk 0:01:57]} 28... Qxd4 {[%clk 0:01:51.9]} 29.
cxd4 {[%clk 0:01:57.9]} 29... Nd7 {[%clk 0:01:50.5]} 30. Bd3 {[%clk 0:01:58.1]}
30... Nb6 {[%clk 0:01:41.9]} 31. Bxb5 {[%clk 0:01:56.2]} 31... Rb8 {[%clk
0:01:42.6]} 32. Rf3 {[%clk 0:01:33.7]} 32... Nxd5 {[%clk 0:01:36.9]} 33. Rb3
{[%clk 0:01:31]} 33... Kf8 {[%clk 0:01:33.4]} 34. Rc1 {[%clk 0:01:30.2]} 34...
Nb6 {[%clk 0:01:21.4]} 35. Rbc3 {[%clk 0:01:24.6]} 35... Nd5 {[%clk 0:01:15]}
36. Rb3 {[%clk 0:01:24.5]} 36... f5 {[%clk 0:01:11.3]} 37. Bc4 {[%clk
0:01:20.4]} 37... Rxb3 {[%clk 0:01:10]} 38. Bxb3 {[%clk 0:01:21.3]} 38... Nf6
{[%clk 0:01:08.5]} 39. f3 {[%clk 0:01:10.1]} 39... g5 {[%clk 0:01:03.6]} 40. Rc6
{[%clk 0:01:09.3]} 40... g4 {[%clk 0:00:58.5]} 41. fxg4 {[%clk 0:01:06.5]} 41...
fxg4 {[%clk 0:00:55.9]} 42. Ra6 {[%clk 0:01:06.3]} 42... Re3 {[%clk 0:00:55.9]}
43. Ra8+ {[%clk 0:01:04.1]} 43... Ke7 {[%clk 0:00:55.5]} 44. Ra7 {[%clk
0:01:01.8]} 44... Kd7 {[%clk 0:00:47.2]} 45. Ba4+ {[%clk 0:01:00.1]} 45... Kd8
{[%clk 0:00:47.6]} 46. Ra8+ {[%clk 0:00:58.2]} 46... Ke7 {[%clk 0:00:47.9]} 47.
Rc8 {[%clk 0:00:58]} 47... Rxg3 {[%clk 0:00:41.1]} 48. Rxc7+ {[%clk 0:00:58.1]}
48... Ke6 {[%clk 0:00:41.7]} 49. Bc2 {[%clk 0:00:50.2]} 49... Rh3 {[%clk
0:00:34.3]} 50. Bxh7 {[%clk 0:00:32.1]} 50... Rxh6 {[%clk 0:00:34.3]} 51. Bc2
{[%clk 0:00:29.7]} 51... Rh2 {[%clk 0:00:29.5]} 52. Kb1 {[%clk 0:00:28]} 52...
g3 {[%clk 0:00:25.6]} 53. Rg7 {[%clk 0:00:26]} 53... g2 {[%clk 0:00:26]} 54. Ka2
{[%clk 0:00:26.3]} 54... Nd5 {[%clk 0:00:16.1]} 55. Bb3 {[%clk 0:00:24]} 55...
Kf6 {[%clk 0:00:11.5]} 56. Rg8 {[%clk 0:00:17.4]} 56... Nc3+ {[%clk 0:00:11.8]}
0-1

[Event "Early-Titled-Tuesday-Blitz-February-20-2024"]
[Site "Chess.com"]
[Date "2024.02.20"]
[Round "8"]
[White "Jospem"]
[Black "VladimirKramnik"]
[Result "1-0"]
[WhiteElo "3099"]
[BlackElo "2977"]
[TimeControl "180+1"]
[EndTime "9:31:22 PST"]
[Termination "Jospem won by checkmate"]

1. e4 {[%clk 0:03:00.9]} 1... e6 {[%clk 0:03:00.5]} 2. d4 {[%clk 0:03:00.9]}
2... d5 {[%clk 0:03:00.4]} 3. exd5 {[%clk 0:03:01.8]} 3... exd5 {[%clk
0:02:59.5]} 4. Nf3 {[%clk 0:03:02.7]} 4... Nc6 {[%clk 0:02:59.4]} 5. h3 {[%clk
0:03:02.6]} 5... Bd6 {[%clk 0:02:57.3]} 6. c4 {[%clk 0:03:03.1]} 6... dxc4
{[%clk 0:02:51.3]} 7. Bxc4 {[%clk 0:03:04]} 7... Nf6 {[%clk 0:02:51.3]} 8. O-O
{[%clk 0:03:03.9]} 8... O-O {[%clk 0:02:51.9]} 9. Qc2 {[%clk 0:03:01.1]} 9... h6
{[%clk 0:02:48.4]} 10. Nc3 {[%clk 0:02:51.4]} 10... Nb4 {[%clk 0:02:43.9]} 11.
Qb1 {[%clk 0:02:45.6]} 11... c6 {[%clk 0:02:40.3]} 12. Re1 {[%clk 0:02:45.9]}
12... Nbd5 {[%clk 0:02:37.2]} 13. Bd2 {[%clk 0:02:45.7]} 13... Re8 {[%clk
0:02:30.6]} 14. Rxe8+ {[%clk 0:02:44.8]} 14... Qxe8 {[%clk 0:02:30.5]} 15. Qc2
{[%clk 0:02:45]} 15... Be6 {[%clk 0:02:30.2]} 16. Re1 {[%clk 0:02:43.4]} 16...
Qf8 {[%clk 0:02:28.3]} 17. Bb3 {[%clk 0:02:42.9]} 17... Re8 {[%clk 0:02:24]} 18.
Ne5 {[%clk 0:02:43.3]} 18... Nb4 {[%clk 0:02:16.2]} 19. Qd1 {[%clk 0:02:39.8]}
19... Bxb3 {[%clk 0:02:10.7]} 20. Qxb3 {[%clk 0:02:40.7]} 20... c5 {[%clk
0:02:08.9]} 21. Ne4 {[%clk 0:01:59.1]} 21... Nxe4 {[%clk 0:01:57.5]} 22. Rxe4
{[%clk 0:01:58.8]} 22... Bxe5 {[%clk 0:01:39.4]} 23. dxe5 {[%clk 0:01:58]} 23...
b6 {[%clk 0:01:32.9]} 24. e6 {[%clk 0:01:27.2]} 24... fxe6 {[%clk 0:01:29]} 25.
Rxe6 {[%clk 0:01:24.3]} 25... Rxe6 {[%clk 0:01:25.2]} 26. Qxe6+ {[%clk
0:01:25.2]} 26... Kh7 {[%clk 0:01:20.4]} 27. a3 {[%clk 0:01:16.6]} 27... Na6
{[%clk 0:01:14.3]} 28. Qd7 {[%clk 0:01:09.1]} 28... Nb8 {[%clk 0:01:04.9]} 29.
Qxa7 {[%clk 0:00:51.6]} 29... Qd6 {[%clk 0:01:02.8]} 30. Bc3 {[%clk 0:00:51.2]}
30... Qd1+ {[%clk 0:01:00.6]} 31. Kh2 {[%clk 0:00:51.6]} 31... Qd6+ {[%clk
0:01:01.3]} 32. Kg1 {[%clk 0:00:52]} 32... Qd1+ {[%clk 0:01:00.2]} 33. Kh2
{[%clk 0:00:52.4]} 33... Qd6+ {[%clk 0:01:01]} 34. g3 {[%clk 0:00:53.1]} 34...
Nd7 {[%clk 0:01:01.1]} 35. Qb7 {[%clk 0:00:51.2]} 35... Nf6 {[%clk 0:00:54.1]}
36. Qf7 {[%clk 0:00:27.3]} 36... Kh8 {[%clk 0:00:32.8]} 37. Bxf6 {[%clk
0:00:26.6]} 37... gxf6 {[%clk 0:00:32.7]} 38. Qg6 {[%clk 0:00:26.5]} 38... Qd4
{[%clk 0:00:31.9]} 39. Qxh6+ {[%clk 0:00:26.4]} 39... Kg8 {[%clk 0:00:32]} 40.
Qg6+ {[%clk 0:00:26.8]} 40... Kf8 {[%clk 0:00:30.8]} 41. Qc2 {[%clk 0:00:27.1]}
41... b5 {[%clk 0:00:30.2]} 42. h4 {[%clk 0:00:26.2]} 42... c4 {[%clk
0:00:28.1]} 43. Kg1 {[%clk 0:00:25.6]} 43... Qg4 {[%clk 0:00:24]} 44. Qd2 {[%clk
0:00:24]} 44... Kg7 {[%clk 0:00:23.1]} 45. Qe3 {[%clk 0:00:17.8]} 45... Qd1+
{[%clk 0:00:22.7]} 46. Kg2 {[%clk 0:00:18]} 46... Qd5+ {[%clk 0:00:22.2]} 47.
Qf3 {[%clk 0:00:13.5]} 47... Qd2 {[%clk 0:00:20.8]} 48. Qb7+ {[%clk 0:00:12.5]}
48... Kg6 {[%clk 0:00:20.4]} 49. Qxb5 {[%clk 0:00:12.2]} 49... Qe2 {[%clk
0:00:20.5]} 50. Qd5 {[%clk 0:00:08.8]} 50... Qxb2 {[%clk 0:00:19.1]} 51. Qxc4
{[%clk 0:00:09.1]} 51... Qxa3 {[%clk 0:00:19.2]} 52. Qg8+ {[%clk 0:00:08.3]}
52... Kh6 {[%clk 0:00:19.4]} 53. Qh8+ {[%clk 0:00:08.7]} 53... Kg6 {[%clk
0:00:18.3]} 54. h5+ {[%clk 0:00:08.2]} 54... Kg5 {[%clk 0:00:14.2]} 55. Qg7+
{[%clk 0:00:04]} 55... Kxh5 {[%clk 0:00:14]} 56. Qh7+ {[%clk 0:00:02.9]} 56...
Kg4 {[%clk 0:00:09.4]} 57. Qg6# {[%clk 0:00:01.5]} 1-0

[Event "Early-Titled-Tuesday-Blitz-February-20-2024"]
[Site "Chess.com"]
[Date "2024.02.20"]
[Round "8"]
[White "Orest_Vovk"]
[Black "Zohid6"]
[Result "0-1"]
[WhiteElo "2667"]
[BlackElo "2874"]
[TimeControl "180+1"]
[EndTime "9:31:22 PST"]
[Termination "Zohid6 won by resignation"]

1. h4 {[%clk 0:02:58.6]} 1... d5 {[%clk 0:02:54.9]} 2. h5 {[%clk 0:02:58.8]}
2... e5 {[%clk 0:02:54.1]} 3. h6 {[%clk 0:02:58.5]} 3... Nxh6 {[%clk 0:02:54.1]}
4. d4 {[%clk 0:02:58.2]} 4... e4 {[%clk 0:02:46.6]} 5. Bxh6 {[%clk 0:02:57.6]}
5... gxh6 {[%clk 0:02:47.5]} 6. e3 {[%clk 0:02:57.3]} 6... c6 {[%clk 0:02:46.5]}
7. c4 {[%clk 0:02:56.8]} 7... Be6 {[%clk 0:02:43]} 8. Qb3 {[%clk 0:02:55]} 8...
Qb6 {[%clk 0:02:28.7]} 9. Nc3 {[%clk 0:02:45.7]} 9... Nd7 {[%clk 0:02:18]} 10.
cxd5 {[%clk 0:02:38.4]} 10... cxd5 {[%clk 0:02:15.1]} 11. Bb5 {[%clk 0:02:33.6]}
11... O-O-O {[%clk 0:01:44.5]} 12. Bxd7+ {[%clk 0:02:22.6]} 12... Rxd7 {[%clk
0:01:40.5]} 13. Qxb6 {[%clk 0:02:23.3]} 13... axb6 {[%clk 0:01:41.4]} 14. Nge2
{[%clk 0:02:21.5]} 14... Rg8 {[%clk 0:01:31.3]} 15. g3 {[%clk 0:02:16.9]} 15...
Rg5 {[%clk 0:01:23]} 16. Nf4 {[%clk 0:02:14.3]} 16... Bg4 {[%clk 0:01:17.8]} 17.
Kd2 {[%clk 0:01:54]} 17... Bf3 {[%clk 0:01:16.7]} 18. Rh4 {[%clk 0:01:25.1]}
18... h5 {[%clk 0:01:16]} 19. a3 {[%clk 0:01:10.7]} 19... Rd6 {[%clk 0:01:01.3]}
20. Nb5 {[%clk 0:01:05.6]} 20... Rc6 {[%clk 0:00:54.1]} 21. Na7+ {[%clk
0:01:05]} 21... Kd7 {[%clk 0:00:53.8]} 22. Nxc6 {[%clk 0:01:05.9]} 22... bxc6
{[%clk 0:00:54.6]} 23. a4 {[%clk 0:01:04.9]} 23... Bb4+ {[%clk 0:00:54.3]} 24.
Kc2 {[%clk 0:01:04.9]} 24... c5 {[%clk 0:00:48.9]} 25. dxc5 {[%clk 0:00:56.6]}
25... bxc5 {[%clk 0:00:44]} 26. a5 {[%clk 0:00:52.1]} 26... Kc7 {[%clk
0:00:41.9]} 27. a6 {[%clk 0:00:51.4]} 27... Kb8 {[%clk 0:00:41.9]} 28. a7+
{[%clk 0:00:50.2]} 28... Ka8 {[%clk 0:00:42.2]} 29. Nh3 {[%clk 0:00:44.7]} 29...
Rg6 {[%clk 0:00:35.2]} 30. Rf4 {[%clk 0:00:42]} 30... f6 {[%clk 0:00:31.9]} 31.
Rf5 {[%clk 0:00:38.5]} 31... d4 {[%clk 0:00:17.4]} 32. Nf4 {[%clk 0:00:25.6]}
32... d3+ {[%clk 0:00:12.1]} 33. Kb3 {[%clk 0:00:08.3]} 33... d2 {[%clk
0:00:11.5]} 34. Nxg6 {[%clk 0:00:06.6]} 34... d1=Q+ {[%clk 0:00:10.7]} 35. Rxd1
{[%clk 0:00:07.1]} 35... Bxd1+ {[%clk 0:00:11.6]} 36. Ka2 {[%clk 0:00:07.6]}
36... hxg6 {[%clk 0:00:11.7]} 37. Rxf6 {[%clk 0:00:08]} 37... Kxa7 {[%clk
0:00:09]} 38. Rxg6 {[%clk 0:00:08.3]} 38... Be1 {[%clk 0:00:08.9]} 39. Rg5
{[%clk 0:00:04.8]} 39... Bxf2 {[%clk 0:00:08]} 40. Rxc5 {[%clk 0:00:04.7]} 40...
Bxe3 {[%clk 0:00:07.7]} 41. Re5 {[%clk 0:00:04.5]} 41... Bf3 {[%clk 0:00:07.9]}
42. Kb3 {[%clk 0:00:05]} 42... Bf2 {[%clk 0:00:07]} 43. Kc3 {[%clk 0:00:01.9]}
43... Bxg3 {[%clk 0:00:06.7]} 44. Re7+ {[%clk 0:00:02.8]} 44... Kb6 {[%clk
0:00:06.3]} 45. Kd2 {[%clk 0:00:03.7]} 45... h4 {[%clk 0:00:06.1]} 46. Ke3
{[%clk 0:00:03.9]} 46... h3 {[%clk 0:00:06.4]} 47. Rg7 {[%clk 0:00:03.4]} 47...
h2 {[%clk 0:00:06.3]} 48. Rh7 {[%clk 0:00:02.1]} 48... h1=Q {[%clk 0:00:06.6]}
49. Rxh1 {[%clk 0:00:02.1]} 49... Bxh1 {[%clk 0:00:07.5]} 0-1

[Event "Early-Titled-Tuesday-Blitz-February-20-2024"]
[Site "Chess.com"]
[Date "2024.02.20"]
[Round "8"]
[White "NastyaHn"]
[Black "malakismayil"]
[Result "1-0"]
[WhiteElo "2441"]
[BlackElo "2519"]
[TimeControl "180+1"]
[EndTime "9:31:25 PST"]
[Termination "NastyaHn won by checkmate"]

1. Nc3 {[%clk 0:03:00]} 1... e5 {[%clk 0:02:59.2]} 2. Nf3 {[%clk 0:02:59.4]}
2... Nc6 {[%clk 0:02:58.9]} 3. d4 {[%clk 0:02:58.7]} 3... exd4 {[%clk
0:02:54.9]} 4. Nxd4 {[%clk 0:02:58.6]} 4... Nf6 {[%clk 0:02:55.6]} 5. Bg5 {[%clk
0:02:58.4]} 5... Be7 {[%clk 0:02:55.6]} 6. Nf5 {[%clk 0:02:58.3]} 6... O-O
{[%clk 0:02:55.1]} 7. Nxe7+ {[%clk 0:02:58.6]} 7... Qxe7 {[%clk 0:02:56]} 8. Nd5
{[%clk 0:02:58.9]} 8... Qe5 {[%clk 0:02:51.3]} 9. Bxf6 {[%clk 0:02:57.6]} 9...
gxf6 {[%clk 0:02:50.7]} 10. c3 {[%clk 0:02:54.8]} 10... d6 {[%clk 0:02:42.4]}
11. Nxc7 {[%clk 0:02:45.4]} 11... Rb8 {[%clk 0:02:41.7]} 12. Nd5 {[%clk
0:02:34.4]} 12... Be6 {[%clk 0:02:39.1]} 13. Ne3 {[%clk 0:02:23.1]} 13... f5
{[%clk 0:02:37.5]} 14. g3 {[%clk 0:02:14]} 14... d5 {[%clk 0:02:23.9]} 15. Bg2
{[%clk 0:01:50.3]} 15... d4 {[%clk 0:02:21.9]} 16. cxd4 {[%clk 0:01:49.1]} 16...
Nxd4 {[%clk 0:02:08]} 17. O-O {[%clk 0:01:49.1]} 17... Rfd8 {[%clk 0:02:08]} 18.
Qe1 {[%clk 0:01:35.2]} 18... f4 {[%clk 0:02:04.7]} 19. gxf4 {[%clk 0:01:33.2]}
19... Qxf4 {[%clk 0:02:05.6]} 20. Kh1 {[%clk 0:01:32.8]} 20... Kh8 {[%clk
0:02:04.3]} 21. Rd1 {[%clk 0:01:23.9]} 21... Nc6 {[%clk 0:01:49.5]} 22. Qc3+
{[%clk 0:01:21.3]} 22... f6 {[%clk 0:01:43]} 23. Nd5 {[%clk 0:00:59.9]} 23...
Bxd5 {[%clk 0:01:33.9]} 24. Bxd5 {[%clk 0:00:48.4]} 24... Ne5 {[%clk 0:01:31.7]}
25. Qg3 {[%clk 0:00:33.2]} 25... Qf5 {[%clk 0:01:12.4]} 26. Rg1 {[%clk
0:00:19.7]} 26... Ng6 {[%clk 0:01:07.5]} 27. e4 {[%clk 0:00:19.2]} 27... Qh5
{[%clk 0:01:02.8]} 28. f4 {[%clk 0:00:19.2]} 28... f5 {[%clk 0:00:40.5]} 29. e5
{[%clk 0:00:15.7]} 29... Qh6 {[%clk 0:00:35.7]} 30. Bf7 {[%clk 0:00:12.1]} 30...
Qxf4 {[%clk 0:00:08.8]} 31. Qxf4 {[%clk 0:00:08.7]} 31... Nxf4 {[%clk
0:00:07.6]} 32. Rxd8+ {[%clk 0:00:08.9]} 32... Rxd8 {[%clk 0:00:08.4]} 33. e6
{[%clk 0:00:09.3]} 33... Nd5 {[%clk 0:00:07.7]} 34. Rd1 {[%clk 0:00:07.8]} 34...
Kg7 {[%clk 0:00:04]} 35. e7 {[%clk 0:00:08.2]} 35... Nxe7 {[%clk 0:00:03.1]} 36.
Rxd8 {[%clk 0:00:07.9]} 36... Kxf7 {[%clk 0:00:03.9]} 37. Rd7 {[%clk 0:00:08.1]}
37... Ke6 {[%clk 0:00:03.2]} 38. Rxb7 {[%clk 0:00:07.9]} 38... Nc6 {[%clk
0:00:03.1]} 39. Rxh7 {[%clk 0:00:07.8]} 39... f4 {[%clk 0:00:03]} 40. Kg2 {[%clk
0:00:07.6]} 40... Ne5 {[%clk 0:00:02.8]} 41. Rxa7 {[%clk 0:00:07.4]} 41... Kf5
{[%clk 0:00:03.1]} 42. Ra5 {[%clk 0:00:06.5]} 42... Ke4 {[%clk 0:00:03.4]} 43.
Rxe5+ {[%clk 0:00:06.5]} 43... Kxe5 {[%clk 0:00:04.3]} 44. a4 {[%clk 0:00:06.8]}
44... Ke4 {[%clk 0:00:04.8]} 45. a5 {[%clk 0:00:06.9]} 45... Ke3 {[%clk
0:00:05.4]} 46. Kf1 {[%clk 0:00:07.2]} 46... Kf3 {[%clk 0:00:05]} 47. a6 {[%clk
0:00:07.4]} 47... Kg4 {[%clk 0:00:04.3]} 48. a7 {[%clk 0:00:07.8]} 48... Kh3
{[%clk 0:00:05.2]} 49. a8=Q {[%clk 0:00:07.9]} 49... Kg4 {[%clk 0:00:05.7]} 50.
Qg2+ {[%clk 0:00:07.7]} 50... Kf5 {[%clk 0:00:06.6]} 51. h4 {[%clk 0:00:08]}
51... Ke5 {[%clk 0:00:06.9]} 52. Qg5+ {[%clk 0:00:08.3]} 52... Kd4 {[%clk
0:00:07.8]} 53. h5 {[%clk 0:00:09.2]} 53... Kc4 {[%clk 0:00:08.4]} 54. h6 {[%clk
0:00:09.9]} 54... Kb3 {[%clk 0:00:09.3]} 55. h7 {[%clk 0:00:10.6]} 55... Ka2
{[%clk 0:00:10.2]} 56. h8=Q {[%clk 0:00:10.8]} 56... Ka1 {[%clk 0:00:11.1]} 57.
Qa8+ {[%clk 0:00:10.1]} 57... Kb1 {[%clk 0:00:12]} 58. Qf5+ {[%clk 0:00:10.1]}
58... Kc1 {[%clk 0:00:12.4]} 59. Qc6+ {[%clk 0:00:09.9]} 59... Kd2 {[%clk
0:00:12.4]} 60. Qcc2+ {[%clk 0:00:10.1]} 60... Ke3 {[%clk 0:00:12.8]} 61. Qfd3#
{[%clk 0:00:10.7]} 1-0